bitfinex/quotes_ETHUSD_20240731
["timestamp","ask_amount","ask_price","bid_price","bid_amount"]
[1722441535195,3.1285498,3310.6,3310.4,1.03677721]
[1722441535424,3.1285498,3310.7,3310.4,1.03677721]
[1722441535999,6.1490598,3310.7,3310.4,1.03677721]
[1722441536198,3.1285498,3310.7,3310.4,1.03677721]
[1722441536447,6.1490898,3310.7,3310.4,1.03677721]
[1722441536747,3.02066,3310.6,3310.4,1.03677721]
[1722441536901,3.1285498,3310.6,3310.4,1.03677721]
[1722441537326,3.02069,3310.5,3310.4,1.03677721]
[1722441538832,9.1699298,3310.5,3310.4,1.03677721]
[1722441539144,6.1492398,3310.5,3310.4,1.0]
[1722441539497,6.1492398,3310.5,3310.4,1.03552715]
[1722441539945,3.02069,3310.5,3310.4,1.03552715]
[1722441540144,6.1491698,3310.6,3310.4,1.03552715]
[1722441540904,3.1285498,3310.6,3310.4,1.03552715]
[1722441541414,6.1492198,3310.6,3310.4,1.03552715]
[1722441541618,6.04138,3310.5,3310.4,1.03552715]
[1722441541819,11.51948,3310.5,3310.4,1.0]
[1722441542447,17.56086,3310.5,3310.4,1.0]
[1722441542656,15.09017,3310.5,3310.4,1.0]
[1722441542957,20.74003193,3310.5,3310.4,1.0]
[1722441543452,23.76072193,3310.5,3310.4,1.0]
[1722441543747,17.08762004,3310.5,3310.4,1.0]
[1722441544244,13.51693004,3310.5,3310.4,1.0]
[1722441544417,16.53762004,3310.5,3310.4,1.0]
[1722441544819,13.51693004,3310.5,3310.4,1.0]
[1722441546105,11.03883004,3310.5,3310.4,1.0]
[1722441546453,6.02069,3310.5,3310.4,1.0]
[1722441546743,9.04138,3310.5,3310.4,1.0]
[1722441547301,8.73858,3310.5,3310.4,1.0]
[1722441547508,14.21067,3310.5,3310.4,1.0]
[1722441547803,15.631737,3310.5,3310.4,1.0]
[1722441548417,16.181737,3310.5,3310.4,1.0]
[1722441548839,19.202427,3310.5,3310.4,1.0]
[1722441550264,3.02186,3309.3,3308.8,2.33]
[1722441550563,2.20269498,3309.1,3308.8,2.33]
[1722441550773,2.20269498,3309.0,3308.9,0.03396052]
[1722441550923,2.20269498,3309.0,3308.8,2.33]
[1722441551123,2.20269498,3309.0,3308.2,2.3616]
[1722441551483,2.20269498,3309.0,3308.2,5.38433]
[1722441551484,2.20269498,3308.8,3308.2,5.38433]
[1722441551841,2.20269498,3308.9,3308.4,3.0226]
[1722441552168,3.02216,3308.9,3308.2,5.38434]
[1722441552372,8.24708498,3308.9,3308.2,5.38433]
[1722441552519,5.22485498,3308.9,3308.2,5.38433]
[1722441552721,2.20269498,3308.9,3308.3,3.4066718]
[1722441553221,3.02215,3308.9,3308.3,3.4066718]
[1722441553426,5.22477498,3309.0,3308.3,0.3840418]
[1722441553670,3.02193,3309.2,3308.4,3.02252]
[1722441553836,3.02193,3309.2,3308.3,3.4066918]
[1722441553837,2.19975326,3309.0,3308.5,3.0225]
[1722441554047,2.19981124,3309.0,3308.6,3.0224]
[1722441554222,3.0,3309.1,3308.3,0.3840418]
[1722441554223,4.5873405,3309.1,3308.3,0.3840418]
[1722441554578,2.1996405,3308.8,3307.9,5.5000438]
[1722441554742,3.02238,3308.7,3307.9,5.5000438]
[1722441554938,5.2220205,3308.7,3307.9,5.5000438]
[1722441555464,2.1996405,3308.8,3308.1,3.02288]
[1722441555623,8.2440705,3308.9,3308.2,3.02278]
[1722441555836,3.02225,3308.8,3308.2,3.02278]
[1722441556476,5.2217705,3309.0,3308.3,3.02269]
[1722441556677,5.2217705,3309.0,3308.3,0.03456647]
[1722441556891,3.02213,3309.0,3308.4,3.02257]
[1722441557089,3.02213,3309.0,3308.3,0.03456647]
[1722441557384,3.02213,3309.0,3308.5,0.03451029]
[1722441557532,3.02213,3309.0,3308.2,0.302278]
[1722441557533,3.02221,3308.9,3308.4,0.03453838]
[1722441557733,3.02221,3308.9,3308.6,0.0344822]
[1722441557934,3.02221,3308.9,3308.1,3.02279]
[1722441558172,3.02221,3308.9,3308.7,0.03445411]
[1722441558384,3.02221,3308.9,3308.1,3.02279]
[1722441558553,3.02221,3308.9,3308.8,0.03442603]
[1722441559082,3.02221,3308.9,3308.2,6.04543]
[1722441559381,3.02221,3308.9,3308.8,0.03442603]
[1722441559580,6.04444,3308.9,3308.2,3.02271]
[1722441559787,5.21945034,3309.0,3308.2,3.02271]
[1722441559953,5.21945034,3309.0,3308.3,3.05719647]
[1722441560273,3.0223,3308.8,3308.3,0.03456647]
[1722441560802,3.0223,3308.8,3308.1,3.02287]
[1722441561087,7.64158835,3308.9,3308.1,3.02281]
[1722441561289,3.02225,3308.8,3308.2,3.02279]
[1722441561451,3.02225,3308.8,3308.2,3.05738456]
[1722441562278,2.71945,3308.8,3308.2,3.05738456]
[1722441563582,2.71945,3308.8,3308.2,0.03459456]
[1722441563946,2.71945,3308.8,3308.2,3.02276]
[1722441564470,3.02233,3308.7,3308.1,3.02288]
[1722441564837,3.02233,3308.7,3308.2,0.03341699]
[1722441565295,3.02268,3308.4,3308.2,0.03341699]
[1722441565438,0.302233,3308.7,3308.2,0.03341699]
[1722441565439,6.04499,3308.6,3308.2,0.03341699]
[1722441565641,3.02254,3308.5,3307.9,5.5000838]
[1722441565850,3.02254,3308.5,3308.0,0.03353351]
[1722441566201,3.02288,3308.1,3308.0,0.03353351]
[1722441566503,3.02288,3308.1,3307.9,0.1466238]
[1722441566504,3.02297,3308.0,3307.9,0.1466238]
[1722441567390,6.04594,3308.0,3307.9,0.1466238]
[1722441570135,3.02297,3308.0,3307.9,0.1466238]
[1722441570422,3.02288,3308.1,3307.9,0.1466238]
[1722441570718,3.02253,3308.5,3308.0,0.03353351]
[1722441571294,6.02262,3308.4,3307.9,0.1466238]
[1722441571520,6.02262,3308.4,3308.1,0.03350541]
[1722441571718,6.02262,3308.4,3308.0,0.03353351]
[1722441571896,6.02262,3308.4,3308.2,0.03347732]
[1722441572100,6.02262,3308.4,3308.1,0.03350541]
[1722441572330,6.02262,3308.4,3308.3,0.03344923]
[1722441572529,6.02262,3308.4,3308.2,0.03347732]
[1722441572744,3.0,3308.4,3307.9,0.1466238]
[1722441573046,3.0227,3308.3,3307.9,0.1466238]
[1722441573338,3.02261,3308.4,3308.0,0.03353351]
[1722441573488,3.0,3308.3,3308.0,0.03353351]
[1722441574005,3.02284,3308.2,3308.0,0.03353351]
[1722441574196,3.02297,3308.0,3307.9,0.1466238]
[1722441574612,6.04594,3308.0,3307.9,0.18018541]
[1722441574929,6.04594,3308.0,3307.9,0.1466238]
[1722441577314,5.74314,3308.0,3307.9,0.1466238]
[1722441578400,2.72017,3308.0,3307.9,0.1466238]
[1722441579423,3.02288,3308.1,3307.9,0.1466238]
[1722441579845,3.02297,3308.0,3307.9,0.1466238]
[1722441580203,3.02283,3308.2,3307.9,0.1466238]
[1722441580399,3.0,3308.3,3307.9,0.1466238]
[1722441580400,3.02289,3308.1,3307.9,0.1466238]
[1722441580658,0.06694271,3308.0,3307.9,0.1466238]
[1722441581011,3.08991271,3308.0,3307.9,0.1466238]
[1722441581812,0.06694271,3308.0,3307.9,0.1466238]
[1722441582645,3.08991271,3308.0,3307.9,0.1466238]
[1722441582958,0.06694271,3308.0,3307.9,0.1466238]
[1722441586734,0.06694271,3308.0,3307.9,0.17997654]
[1722441587435,0.06694271,3308.0,3307.9,6.78457819]
[1722441591934,0.06694271,3308.0,3307.9,12.28943819]
[1722441592200,0.06694271,3308.0,3307.9,15.31249819]
[1722441592480,5.2176831,3309.3,3308.7,3.0223]
[1722441592686,3.02178,3309.3,3308.8,0.03281608]
[1722441593057,3.02178,3309.3,3308.6,5.47689]
[1722441593265,3.02197,3309.1,3308.7,0.03284416]
[1722441593447,2.1959031,3309.1,3308.7,0.03284416]
[1722441593776,2.1959031,3309.2,3308.7,0.03284416]
[1722441594161,5.2177931,3309.2,3308.7,0.03284416]
[1722441594563,2.1959031,3309.1,3308.7,0.03284416]
[1722441595084,2.1959031,3309.4,3309.0,3.02205]
[1722441595256,2.1959031,3309.3,3309.1,0.03273183]
[1722441595589,2.1975777,3309.4,3309.1,0.03273183]
[1722441595751,2.19765412,3309.4,3309.1,0.03273183]
[1722441596152,2.19765412,3309.4,3309.0,3.02203]
[1722441596357,2.19765412,3309.5,3309.2,0.03270376]
[1722441596583,0.1493957,3309.8,3309.0,3.324213]
[1722441596584,2.19765412,3309.6,3309.1,0.03273183]
[1722441596765,2.19765412,3309.6,3309.3,0.03267568]
[1722441596977,2.19765412,3309.6,3309.2,3.05451376]
[1722441597179,2.19765412,3309.6,3309.4,0.03264761]
[1722441597351,2.19765412,3309.7,3309.3,0.03267568]
[1722441597550,2.19765412,3309.7,3309.5,0.03261954]
[1722441597791,2.19765412,3309.7,3309.4,0.03264761]
[1722441598094,2.19765412,3309.7,3309.5,0.03261954]
[1722441598593,0.1493957,3309.8,3309.4,3.02165]
[1722441598793,2.34630273,3309.8,3309.6,0.03114913]
[1722441598954,2.34630273,3309.8,3309.5,0.0311772]
[1722441599150,2.34639822,3309.8,3309.7,0.03112106]
[1722441599718,0.1493957,3309.8,3309.5,3.0216]
[1722441599901,0.1493957,3309.8,3309.7,0.03112106]
[1722441600134,0.1493957,3309.8,3309.6,0.03114913]
[1722441603991,3.02142,3309.7,3309.6,0.03114913]
[1722441604192,6.04284,3309.7,3309.6,0.03114913]
[1722441604527,6.90780357,3309.7,3309.6,0.03114913]
[1722441604731,12.92922357,3309.7,3309.6,0.03114913]
[1722441606084,9.90780357,3309.7,3309.6,0.03114913]
[1722441606425,6.02142,3309.7,3309.6,0.03114913]
[1722441606742,0.1493957,3309.8,3309.6,0.03114913]
[1722441606895,3.02142,3309.7,3309.6,0.03114913]
[1722441607091,6.04284,3309.7,3309.6,0.03114913]
[1722441607307,5.74004,3309.7,3309.6,0.03114913]
[1722441607508,12.13483857,3309.7,3309.6,0.03114913]
[1722441608009,9.11341857,3309.7,3309.6,0.03114913]
[1722441608238,12.11341857,3309.7,3309.6,0.03114913]
[1722441611079,9.63111857,3309.7,3309.6,0.03114913]
[1722441611481,5.71862,3309.7,3309.6,0.03114913]
[1722441611864,3.0,3309.7,3309.6,0.03114913]
[1722441612036,3.02093,3310.3,3309.6,0.03114913]
[1722441612232,3.02096,3310.2,3309.6,0.03114913]
[1722441612442,3.02083,3310.4,3309.8,3.02131]
[1722441612648,3.02088,3310.3,3309.9,0.302131]
[1722441612945,3.02089,3310.3,3309.7,3.02136]
[1722441613173,3.02076,3310.5,3309.7,3.02133]
[1722441613389,3.02069,3310.5,3309.7,3.02133]
[1722441613621,3.02078,3310.4,3309.7,3.02133]
[1722441613894,3.1698557,3310.8,3309.7,3.02133]
[1722441614081,3.02065,3310.6,3309.9,3.02118]
[1722441614279,6.02076,3310.5,3309.8,3.3326103]
[1722441614600,6.02076,3310.5,3309.6,0.03114913]
[1722441614601,3.02112,3310.1,3309.6,0.03114913]
[1722441614744,3.02079,3310.4,3309.6,0.03114913]
[1722441614941,3.02128,3309.9,3309.6,0.03114913]
[1722441615484,3.02109,3310.1,3309.6,0.03114913]
[1722441615485,6.04284,3309.7,3309.6,0.03114913]
[1722441617193,3.02142,3309.7,3309.6,0.03114913]
[1722441617793,3.02124,3309.9,3309.6,0.03114913]
[1722441618398,3.02142,3309.7,3309.6,0.03114913]
[1722441618593,6.647116,3309.7,3309.6,0.03114913]
[1722441618797,3.625696,3309.7,3309.6,0.03114913]
[1722441618961,2.589675,3310.2,3309.6,0.03114913]
[1722441618962,5.21353746,3310.0,3309.6,0.03114913]
[1722441619169,2.19231746,3310.2,3309.6,0.03114913]
[1722441619350,3.02082,3310.4,3309.6,0.03114913]
[1722441619351,2.19231746,3310.1,3309.6,0.03114913]
[1722441619554,3.02096,3310.2,3309.6,0.03114913]
[1722441619780,3.02108,3310.1,3309.6,0.27017404]
[1722441619978,3.02094,3310.3,3309.6,3.29168404]
[1722441620183,3.02097,3310.2,3309.6,3.49168404]
[1722441621265,3.02088,3310.3,3309.7,3.02141]
[1722441621470,2.19277979,3310.5,3309.6,0.47017404]
[1722441621767,5.19277979,3310.5,3309.7,3.02133]
[1722441622167,5.21348979,3310.5,3309.8,3.02132]
[1722441622479,2.19277979,3310.6,3309.9,3.02122]
[1722441622698,3.02073,3310.5,3309.9,3.02122]
[1722441623001,3.02085,3310.4,3309.8,0.6512824]
[1722441623153,3.02085,3310.4,3309.8,3.02131]
[1722441624000,5.21423161,3310.6,3309.8,3.02127]
[1722441624203,6.04134,3310.6,3310.0,3.02114]
[1722441624360,3.0,3310.5,3310.0,3.02114]
[1722441624691,3.02078,3310.4,3309.8,3.02125]
[1722441625267,3.02078,3310.4,3309.8,6.7138114]
[1722441625467,6.02069,3310.5,3309.8,3.6925414]
[1722441626657,3.02083,3310.4,3309.8,0.6712914]
[1722441626863,3.02087,3310.3,3309.8,0.6712914]
[1722441627102,3.0,3310.5,3309.6,0.43114913]
[1722441627305,0.1493957,3310.8,3309.6,0.43114913]
[1722441627306,3.02128,3309.9,3309.6,0.43114913]
[1722441627469,6.04259,3309.9,3309.6,0.43114913]
[1722441627796,3.02108,3310.1,3309.6,0.43114913]
[1722441628481,5.21397357,3310.3,3309.6,0.43114913]
[1722441628482,6.04284,3309.7,3309.6,0.43114913]
[1722441628685,8.23664627,3309.7,3309.6,0.43114913]
[1722441628883,6.86650463,3309.7,3309.6,0.43114913]
[1722441629097,9.86650463,3309.7,3309.6,0.43114913]
[1722441629600,12.45793828,3309.7,3309.6,0.43114913]
[1722441629800,15.47935828,3309.7,3309.6,0.43114913]
[1722441630416,9.86650463,3309.7,3309.6,0.43114913]
[1722441630582,12.45787926,3309.7,3309.6,0.43114913]
[1722441631713,11.63421463,3309.7,3309.6,0.43114913]
[1722441632010,9.04284,3309.7,3309.6,0.43114913]
[1722441632381,11.63421463,3309.7,3309.6,0.43114913]
[1722441632583,6.02142,3309.7,3309.6,0.43114913]
[1722441633233,9.04284,3309.7,3309.6,0.43114913]
[1722441633512,10.20626146,3309.7,3309.6,0.43114913]
[1722441634184,6.02142,3309.7,3309.6,0.43114913]
[1722441634521,9.04284,3309.7,3309.6,0.43114913]
[1722441634818,6.02142,3309.7,3309.6,0.43114913]
[1722441635021,5.59406748,3309.7,3309.6,0.43114913]
[1722441635200,3.0,3309.7,3309.6,0.43114913]
[1722441635525,5.61547748,3309.8,3309.6,0.43114913]
[1722441635686,3.02142,3309.7,3309.6,0.43114913]
[1722441635891,6.90652175,3309.7,3309.6,0.43114913]
[1722441636097,9.90652175,3309.7,3309.6,0.43114913]
[1722441636311,9.90652175,3309.7,3309.6,0.4]
[1722441637294,15.73275175,3309.7,3309.6,0.4]
[1722441637610,12.62514175,3309.7,3309.6,0.4]
[1722441638014,9.60372175,3309.7,3309.6,0.4]
[1722441638311,12.71798103,3309.7,3309.6,0.4]
[1722441638969,15.73940103,3309.7,3309.6,0.4]
[1722441639313,12.62514175,3309.7,3309.6,0.4]
[1722441639475,15.7402726,3309.7,3309.6,0.4]
[1722441639677,12.62514175,3309.7,3309.6,0.4]
[1722441640609,15.64656175,3309.7,3309.6,0.4]
[1722441641008,16.19656175,3309.7,3309.6,0.4]
[1722441641246,16.19656175,3309.7,3308.0,2.4545]
[1722441641531,2.19774555,3308.4,3308.0,2.4545]
[1722441641734,2.19774555,3308.4,3308.1,0.0311098]
[1722441641942,2.19774555,3308.3,3308.1,0.0311098]
[1722441642308,2.19755853,3308.2,3308.1,0.0311098]
[1722441642541,3.02275,3308.3,3308.1,0.0311098]
[1722441642542,5.22030853,3308.3,3308.1,0.0311098]
[1722441642894,5.22030853,3308.3,3307.9,0.1466238]
[1722441643097,2.19755853,3308.2,3307.9,0.1466238]
[1722441643346,3.02297,3308.0,3307.9,0.1466238]
[1722441644426,8.24349853,3308.0,3307.9,0.1466238]
[1722441644748,6.93722721,3308.0,3307.9,0.1466238]
[1722441645764,12.98316721,3308.0,3307.9,0.1466238]
[1722441646044,13.51019721,3308.0,3307.9,0.1466238]
[1722441646796,16.61664029,3308.0,3307.9,0.1466238]
[1722441647226,13.51019721,3308.0,3307.9,0.1466238]
[1722441647741,16.53316721,3308.0,3307.9,0.1466238]
[1722441647950,12.96019721,3308.0,3307.9,0.1466238]
[1722441648444,6.08990736,3308.0,3307.9,0.1466238]
[1722441649001,3.06693736,3308.0,3307.9,0.17633772]
[1722441649248,0.06693736,3308.0,3307.9,0.17633772]
[1722441649545,3.08990736,3308.0,3307.9,0.17633772]
[1722441649843,0.06693736,3308.0,3307.9,0.17633772]
[1722441651036,3.08990736,3308.0,3307.9,0.17633772]
[1722441651544,6.11287736,3308.0,3307.9,0.17633772]
[1722441651765,7.0241651,3308.0,3307.9,0.1466238]
[1722441652374,15.1034351,3308.0,3307.9,0.1466238]
[1722441652671,9.7213651,3308.0,3307.9,0.1466238]
[1722441652889,5.78710736,3308.0,3307.9,0.1466238]
[1722441653351,8.81007736,3308.0,3307.9,0.1466238]
[1722441654729,8.81007736,3308.0,3307.9,0.3466238]
[1722441655738,5.78710736,3308.0,3307.9,0.3466238]
[1722441656424,8.81007736,3308.0,3307.9,0.3466238]
[1722441656625,6.6681151,3308.0,3307.9,0.3466238]
[1722441656865,5.78710736,3308.0,3307.9,0.3466238]
[1722441658179,3.0,3308.0,3307.9,0.3466238]
[1722441658733,3.0,3308.0,3307.9,0.5466238]
[1722441659081,3.0,3308.0,3307.9,0.57661537]
[1722441659224,6.02297,3308.0,3307.9,0.57661537]
[1722441659429,9.04594,3308.0,3307.9,0.5466238]
[1722441659733,9.950534,3308.0,3307.9,0.5466238]
[1722441660500,12.973504,3308.0,3307.9,0.5466238]
[1722441660708,9.950534,3308.0,3307.9,0.5466238]
[1722441661243,6.927564,3308.0,3307.9,0.5466238]
[1722441661448,6.02297,3308.0,3307.9,0.5466238]
[1722441661795,2.4118058,3308.4,3307.9,0.57661537]
[1722441661796,0.0527058,3308.4,3307.9,0.57661537]
[1722441661966,0.1493957,3308.6,3307.9,0.57661537]
[1722441662164,0.1493957,3308.6,3308.2,3.02277]
[1722441662369,0.1493957,3308.6,3308.2,0.604558]
[1722441662603,0.1493957,3308.6,3308.3,3.05259769]
[1722441662746,0.1493957,3308.6,3308.3,3.05257769]
[1722441662953,3.02194,3309.2,3308.4,3.0226]
[1722441663187,3.02213,3309.0,3308.4,3.0226]
[1722441663403,3.02155,3309.6,3308.5,0.02990151]
[1722441663404,3.02239,3308.7,3308.5,0.02990151]
[1722441663602,3.02191,3309.2,3308.5,0.02990151]
[1722441664218,3.02207,3309.0,3308.5,0.02990151]
[1722441664700,3.02234,3308.7,3308.2,0.604558]
[1722441664903,6.02219,3308.9,3308.2,3.627348]
[1722441665079,6.02219,3308.9,3308.3,0.61932249]
[1722441665280,3.0,3308.9,3308.3,0.61932249]
[1722441665597,3.0,3309.0,3308.4,3.02255]
[1722441665900,3.0,3309.2,3308.6,3.02235]
[1722441666256,3.0,3309.2,3305.5,3.81454498]
[1722441666257,2.3346,3309.4,3308.7,0.02984534]
[1722441666471,2.3346,3309.4,3307.6,2.3824]
[1722441666472,3.02284,3308.2,3307.6,2.3824]
[1722441666673,3.1717357,3308.7,3307.6,2.3824]
[1722441666866,3.02297,3308.0,3307.2,5.31338]
[1722441667308,3.02297,3308.0,3307.2,2.2897]
[1722441667309,2.72017,3308.0,3307.2,2.2897]
[1722441667679,3.02288,3308.1,3307.2,2.2897]
[1722441667680,3.02294,3308.1,3307.3,3.02359]
[1722441667916,3.02297,3308.0,3307.3,3.02359]
[1722441668716,3.02279,3308.2,3307.4,3.02351]
[1722441668717,3.02288,3308.1,3307.4,3.02351]
[1722441669009,3.02279,3308.2,3307.4,3.02351]
[1722441669010,3.02297,3308.0,3307.4,3.02351]
[1722441669170,3.02279,3308.2,3307.4,3.02351]
[1722441669766,3.02264,3308.4,3307.4,3.02348]
[1722441669978,3.0,3308.5,3307.7,3.02319]
[1722441670316,3.02265,3308.4,3308.0,0.04151033]
[1722441670872,3.02277,3308.3,3308.0,0.04151033]
[1722441671186,3.02279,3308.2,3308.0,0.04151033]
[1722441671510,3.02265,3308.4,3308.0,0.04151033]
[1722441671511,3.02288,3308.1,3308.0,0.04151033]
[1722441671819,6.04576,3308.1,3308.0,0.04151033]
[1722441672116,3.02297,3308.0,3307.2,5.31338]
[1722441672298,6.04594,3308.0,3307.2,2.2897]
[1722441672502,6.650534,3308.0,3307.2,2.2897]
[1722441673021,3.627564,3308.0,3307.3,3.02358]
[1722441673366,6.650534,3308.0,3307.2,2.2897]
[1722441673563,6.650534,3308.0,3307.2,5.3134]
[1722441674011,3.02283,3308.2,3307.3,3.02354]
[1722441674168,3.0229,3308.1,3307.5,3.02341]
[1722441674586,3.0229,3308.1,3308.0,0.04152392]
[1722441674785,4.09928756,3308.4,3308.0,0.04152392]
[1722441674994,4.09928756,3308.4,3307.7,3.02318]
[1722441674995,3.0,3308.3,3307.7,3.02318]
[1722441675221,3.0,3308.3,3307.5,3.02336]
[1722441675367,3.82151932,3308.3,3308.0,0.04152392]
[1722441675571,3.02288,3308.1,3308.0,0.04152392]
[1722441675767,6.04576,3308.1,3308.0,0.04152392]
[1722441676670,3.02297,3308.0,3307.2,5.31332]
[1722441676883,3.02297,3308.0,3307.3,3.02359]
[1722441677081,3.02297,3308.0,3307.2,5.31337]
[1722441677316,3.02291,3308.1,3307.4,3.02345]
[1722441677472,3.02291,3308.1,3307.5,3.02341]
[1722441677683,3.02291,3308.1,3308.0,0.04152392]
[1722441678076,3.02297,3308.0,3307.4,3.02352]
[1722441679102,3.02297,3308.0,3307.3,3.02361]
[1722441679915,3.02297,3308.0,3307.2,5.31338]
[1722441680125,3.02297,3308.0,3307.3,3.02361]
[1722441680430,6.86984884,3308.0,3307.2,2.2897]
[1722441680575,9.86984884,3308.0,3307.2,2.2897]
[1722441681276,12.89281884,3308.0,3306.8,5.4395]
[1722441681501,15.48807315,3308.0,3306.8,5.4395]
[1722441682519,12.59001884,3308.0,3306.8,2.4155]
[1722441683110,12.59001884,3308.0,3306.8,5.43955]
[1722441683531,12.59001884,3308.0,3306.9,3.02397]
[1722441683900,15.18631928,3308.0,3306.9,3.02397]
[1722441684141,12.16334928,3308.0,3307.0,3.02388]
[1722441684923,12.16334928,3308.0,3306.8,2.4155]
[1722441685130,9.56704884,3308.0,3306.8,2.4155]
[1722441685442,12.59001884,3308.0,3306.8,5.43956]
[1722441685598,15.69646192,3308.0,3306.8,2.4155]
[1722441686501,12.59001884,3308.0,3306.8,2.4155]
[1722441686926,12.59001884,3308.0,3306.8,5.43955]
[1722441687441,12.59001884,3308.0,3306.8,2.4155]
[1722441687646,15.61298884,3308.0,3306.8,2.4155]
[1722441687854,16.16298884,3308.0,3306.8,2.4155]
[1722441688145,13.14001884,3308.0,3306.8,2.4155]
[1722441688447,16.16298884,3308.0,3306.8,2.4155]
[1722441688646,18.52748884,3308.0,3307.9,3.8e-06]
[1722441690360,3.0242,3306.7,3306.3,2.3768]
[1722441690511,3.02426,3306.6,3306.4,0.23768]
[1722441691149,3.02416,3306.7,3306.4,0.23768]
[1722441691945,5.22413933,3306.7,3306.4,0.23768]
[1722441692448,3.02426,3306.6,3306.4,0.23768]
[1722441692859,3.02426,3306.6,3306.3,2.3768]
[1722441693016,5.22423933,3306.6,3306.3,2.3768]
[1722441693213,5.22500992,3306.6,3306.3,2.3768]
[1722441693527,5.22490992,3306.7,3306.3,2.3768]
[1722441693861,3.02427,3306.6,3306.3,2.3768]
[1722441695516,6.04859,3306.6,3306.3,2.3768]
[1722441695848,3.02434,3306.5,3306.3,2.3768]
[1722441696026,3.02434,3306.5,3305.7,2.3364]
[1722441696027,2.20074992,3306.5,3305.7,2.3364]
[1722441696355,3.02486,3306.0,3305.7,2.3364]
[1722441696564,3.326804,3306.5,3305.7,2.3364]
[1722441696565,3.0249,3305.9,3305.7,2.3364]
[1722441696937,3.02447,3306.4,3305.7,2.3364]
[1722441696938,3.02482,3306.0,3305.7,2.3364]
[1722441697138,3.02498,3305.8,3305.4,2.4254]
[1722441697340,3.02526,3305.5,3305.4,2.4254]
[1722441697544,2.72228,3305.7,3305.4,2.4254]
[1722441698162,3.0252,3305.6,3305.4,2.4254]
[1722441698351,3.02506,3305.8,3305.5,0.04174562]
[1722441698548,3.02508,3305.7,3305.5,0.04174562]
[1722441698852,3.02513,3305.7,3305.5,0.04174562]
[1722441699350,3.02493,3305.9,3305.5,0.04174562]
[1722441699563,2.19871375,3306.1,3305.5,0.04174562]
[1722441699564,3.02516,3305.6,3305.5,0.04174562]
[1722441700063,3.02508,3305.7,3305.5,0.0383827]
[1722441700438,3.02518,3305.6,3305.0,0.1]
[1722441700639,3.02533,3305.5,3305.0,0.1]
[1722441700968,3.02517,3305.6,3305.1,0.03561164]
[1722441701782,3.02526,3305.5,3305.1,0.03561164]
[1722441702078,3.02475,3306.1,3305.1,0.03561164]
[1722441702288,3.02535,3305.4,3305.1,0.03561164]
[1722441702837,7.28982221,3306.0,3305.1,0.03561164]
[1722441702838,3.02544,3305.3,3305.1,0.03561164]
[1722441703469,3.02526,3305.5,3305.1,0.03561164]
[1722441703668,7.28982221,3306.0,3305.1,3.06121164]
[1722441703669,3.0251,3305.7,3305.1,3.06121164]
[1722441704533,3.02526,3305.5,3305.1,0.03561164]
[1722441704892,3.02545,3305.3,3305.1,0.03561164]
[1722441705088,3.02526,3305.5,3305.1,0.03561164]
[1722441705089,3.02553,3305.2,3305.1,0.03561164]
[1722441705238,3.02542,3305.4,3305.1,0.03561164]
[1722441705982,3.02526,3305.5,3305.1,0.03561164]
[1722441706137,4.26499221,3306.0,3305.1,0.03561164]
[1722441706477,4.26499221,3306.0,3305.0,0.1]
[1722441706478,3.02536,3305.4,3305.0,0.1]
[1722441706680,3.02549,3305.3,3305.0,0.1]
[1722441706890,3.02549,3305.3,3305.1,0.03291758]
[1722441707389,15.10212,3305.2,3305.1,0.03291758]
[1722441707546,9.05106,3305.2,3305.1,0.04575426]
[1722441707889,9.07686,3305.1,3305.0,0.1]
[1722441708037,12.07686,3305.1,3305.0,0.1]
[1722441708240,9.05124,3305.1,3305.0,0.1]
[1722441708580,6.02562,3305.1,3305.0,0.1]
[1722441708738,0.1493957,3305.4,3305.0,0.1]
[1722441708937,3.02553,3305.3,3305.0,0.1]
[1722441709136,0.61749257,3305.3,3305.0,0.15657083]
[1722441709387,3.02546,3305.3,3305.0,0.15657083]
[1722441709534,0.1493957,3305.4,3305.0,0.1]
[1722441709993,3.02544,3305.3,3305.0,0.15657083]
[1722441710456,0.1493957,3305.4,3305.0,0.15657083]
[1722441710776,3.02544,3305.3,3305.0,0.15657083]
[1722441710989,3.02562,3305.1,3305.0,0.15657083]
[1722441711305,3.02553,3305.2,3305.0,0.15657083]
[1722441711638,3.1747757,3305.4,3305.0,0.15657083]
[1722441711639,6.05124,3305.1,3305.0,0.15657083]
[1722441711842,6.05124,3305.1,3305.0,0.1]
[1722441711843,3.630744,3305.1,3305.0,0.1]
[1722441712394,3.630744,3305.1,3305.0,0.15657083]
[1722441712395,5.74844,3305.1,3305.0,0.15657083]
[1722441712750,2.72282,3305.1,3305.0,0.15657083]
[1722441713055,3.02544,3305.3,3305.0,0.15657083]
[1722441713671,3.02562,3305.1,3305.0,0.15657083]
[1722441713867,6.05124,3305.1,3305.0,0.35657083]
[1722441714258,6.05124,3305.1,3305.0,0.3]
[1722441715590,6.656364,3305.1,3305.0,0.3]
[1722441715790,12.681984,3305.1,3305.0,0.3]
[1722441716474,15.177484,3305.1,3305.0,0.3]
[1722441716680,15.727484,3305.1,3305.0,0.3]
[1722441717146,18.753104,3305.1,3305.0,0.3]
[1722441717850,18.753104,3305.1,3305.0,0.5]
[1722441718904,18.753104,3305.1,3304.5,0.1466238]
[1722441718905,9.07824,3304.6,3304.5,0.1466238]
[1722441719046,12.62824,3304.6,3304.5,0.1466238]
[1722441719608,12.62824,3304.6,3302.6,3.02791]
[1722441719609,3.02712,3303.5,3301.4,3.02899]
[1722441719745,2.4207,3302.2,3301.2,0.1466238]
[1722441719945,3.0,3302.7,3301.2,0.1466238]
[1722441719946,3.02838,3302.1,3301.2,0.1466238]
[1722441720201,0.1493957,3303.0,3301.2,0.1466238]
[1722441720202,0.484412,3303.4,3301.2,0.1466238]
[1722441720432,3.0,3302.9,3301.9,3.0285]
[1722441720686,3.0,3302.9,3301.6,2.3486]
[1722441720894,3.0,3302.9,3301.8,3.02857]
[1722441720895,6.02765,3302.9,3301.8,3.02857]
[1722441721098,6.02765,3302.9,3301.2,0.1466238]
[1722441721099,3.0,3302.9,3301.2,0.1466238]
[1722441721295,0.484412,3303.4,3301.4,3.02894]
[1722441721296,3.02807,3302.5,3301.4,3.02894]